[Event "Titled Tuesday Blitz June 27 Late 2023"]
[White "Lowinger, Daniel"]
[Black "Vaibhav Jayant Raut"]
[WhiteFideId "2005557"]
[BlackFideId "5089034"]
[WhiteElo "2384"]
[BlackElo "2639"]
[Result "1-0"]
[Round "2"]
[TimeControl "180+2"]
[Date "2023.06.27"]
[WhiteClock "0:00:23"]
[BlackClock "0:00:11"]
[Board "98"]

1. e4 {[%clk 0:02:51]}  c5 {[%clk 0:02:59]} 2. Nf3 {[%clk 0:02:51]}  Nc6 {[%clk 0:03:00]} 3. d4 {[%clk 0:02:48]}  cxd4 {[%clk 0:03:00]} 4. Nxd4 {[%clk 0:02:49]}  Nf6 {[%clk 0:03:01]} 5. Nc3 {[%clk 0:02:46]}  e6 {[%clk 0:03:01]} 6. Ndb5 {[%clk 0:02:40]}  Bb4 {[%clk 0:03:00]} 7. Nd6+ {[%clk 0:02:39]}  Ke7 {[%clk 0:03:00]} 8. Nxc8+ {[%clk 0:02:39]}  Rxc8 {[%clk 0:02:58]} 9. Bd3 {[%clk 0:02:38]}  d5 {[%clk 0:02:56]} 10. exd5 {[%clk 0:02:30]}  Nxd5 {[%clk 0:02:56]} 11. Bd2 {[%clk 0:02:28]}  Nxc3 {[%clk 0:02:54]} 12. bxc3 {[%clk 0:02:26]}  Bc5 {[%clk 0:02:54]} 13. O-O {[%clk 0:02:22]}  Qd5 {[%clk 0:02:54]} 14. Rb1 {[%clk 0:02:14]}  b6 {[%clk 0:02:49]} 15. Qg4 {[%clk 0:02:02]}  h5 {[%clk 0:02:46]} 16. Qh4+ {[%clk 0:01:59]}  f6 {[%clk 0:02:38]} 17. Rfe1 {[%clk 0:01:57]}  g5 {[%clk 0:02:34]} 18. Qa4 {[%clk 0:01:49]}  Rc7 {[%clk 0:02:13]} 19. Bc1 {[%clk 0:01:36]}  Ne5 {[%clk 0:02:09]} 20. c4 {[%clk 0:01:07]}  Qc6 {[%clk 0:01:57]} 21. Qb3 {[%clk 0:01:01]}  Rd8 {[%clk 0:01:47]} 22. Rxe5 {[%clk 0:00:59]}  fxe5 {[%clk 0:01:31]} 23. Bxg5+ {[%clk 0:00:59]}  Ke8 {[%clk 0:01:25]} 24. Bg6+ {[%clk 0:00:57]}  Kf8 {[%clk 0:00:51]} 25. Bxd8 {[%clk 0:00:53]}  Rg7 {[%clk 0:00:52]} 26. Qg3 {[%clk 0:00:44]}  Qd7 {[%clk 0:00:20]} 27. Bf6 {[%clk 0:00:42]}  Bxf2+ {[%clk 0:00:19]} 28. Qxf2 {[%clk 0:00:38]}  Rxg6 {[%clk 0:00:18]} 29. Bxe5+ {[%clk 0:00:38]}  Kg8 {[%clk 0:00:18]} 30. Rf1 {[%clk 0:00:36]}  Qe7 {[%clk 0:00:14]} 31. Kh1 {[%clk 0:00:28]}  h4 {[%clk 0:00:14]} 32. h3 {[%clk 0:00:28]}  a5 {[%clk 0:00:13]} 33. Qxb6 {[%clk 0:00:24]}  Kh7 {[%clk 0:00:12]} 34. Qf2 {[%clk 0:00:23]}  Kh6 {[%clk 0:00:11]} 35. Qf8+ {[%clk 0:00:23]}  Qxf8 {[%clk 0:00:10]} 36. Rxf8 {[%clk 0:00:24]}  Kh7 {[%clk 0:00:09]} 37. Rf7+ {[%clk 0:00:23]}  Kh6 {[%clk 0:00:08]} 38. Rf6 {[%clk 0:00:24]}  Rxf6 {[%clk 0:00:04]} 39. Bxf6 {[%clk 0:00:24]}  Kg6 {[%clk 0:00:05]} 40. Bxh4 {[%clk 0:00:24]}  Kf5 {[%clk 0:00:06]} 41. Be1 {[%clk 0:00:25]}  Ke4 {[%clk 0:00:07]} 42. Bxa5 {[%clk 0:00:25]}  Kd4 {[%clk 0:00:08]} 43. h4 {[%clk 0:00:23]}  Kc5 {[%clk 0:00:08]} 44. h5 {[%clk 0:00:24]}  Kxc4 {[%clk 0:00:09]} 45. h6 {[%clk 0:00:24]}  e5 {[%clk 0:00:10]} 46. h7 {[%clk 0:00:24]}  e4 {[%clk 0:00:11]} 47. h8=Q {[%clk 0:00:24]}  e3 {[%clk 0:00:10]} 48. Qc3+ {[%clk 0:00:24]}  Kb5 {[%clk 0:00:11]} 49. Qxe3 {[%clk 0:00:24]}  Ka4 {[%clk 0:00:12]} 50. Qb3+ {[%clk 0:00:22]}  Kxa5 {[%clk 0:00:11]} 51. c4 {[%clk 0:00:23]}  Ka6 {[%clk 0:00:12]} 52. c5 {[%clk 0:00:23]}  Ka5 {[%clk 0:00:12]} 53. c6 {[%clk 0:00:23]}  Ka6 {[%clk 0:00:12]} 54. c7 {[%clk 0:00:23]}  Ka5 {[%clk 0:00:12]} 55. g4 {[%clk 0:00:23]}  Ka6 {[%clk 0:00:11]} 56. c8=Q+ {[%clk 0:00:23]}  Ka5 {[%clk 0:00:11]} 57. Qa8# {[%clk 0:00:23]} 1-0


[Site "https://www.chess.com"]

[Event "Titled Tuesday Blitz June 27 Late 2023"]
[White "MaryanKyrychenko"]
[Black "Andersson, Bjorn 1971"]
[BlackFideId "1702114"]
[WhiteElo "2566"]
[BlackElo "2332"]
[Result "0-1"]
[Round "2"]
[TimeControl "180+2"]
[Date "2023.06.27"]
[WhiteClock "0:00:05"]
[BlackClock "0:00:17"]
[Board "100"]

1. e4 {[%clk 0:03:00]}  c5 {[%clk 0:02:58]} 2. Nc3 {[%clk 0:03:00]}  Nc6 {[%clk 0:02:58]} 3. f4 {[%clk 0:03:01]}  g5 {[%clk 0:02:58]} 4. Nf3 {[%clk 0:03:01]}  gxf4 {[%clk 0:02:58]} 5. Bb5 {[%clk 0:02:59]}  d6 {[%clk 0:02:50]} 6. d3 {[%clk 0:02:56]}  e5 {[%clk 0:02:50]} 7. O-O {[%clk 0:02:55]}  Bg4 {[%clk 0:02:46]} 8. Bc4 {[%clk 0:02:51]}  Qd7 {[%clk 0:02:33]} 9. Qe1 {[%clk 0:02:39]}  O-O-O {[%clk 0:02:28]} 10. a3 {[%clk 0:02:32]}  Nd4 {[%clk 0:02:15]} 11. Nxd4 {[%clk 0:02:28]}  cxd4 {[%clk 0:02:15]} 12. Nd5 {[%clk 0:02:28]}  Be7 {[%clk 0:02:11]} 13. c3 {[%clk 0:02:23]}  dxc3 {[%clk 0:02:05]} 14. bxc3 {[%clk 0:02:23]}  Kb8 {[%clk 0:02:05]} 15. d4 {[%clk 0:02:23]}  Nf6 {[%clk 0:02:01]} 16. Rb1 {[%clk 0:02:19]}  Rc8 {[%clk 0:01:37]} 17. Ba6 {[%clk 0:02:04]}  b6 {[%clk 0:01:30]} 18. Bxc8 {[%clk 0:02:03]}  Rxc8 {[%clk 0:01:28]} 19. Nxe7 {[%clk 0:01:58]}  Qxe7 {[%clk 0:01:28]} 20. a4 {[%clk 0:01:06]}  Be6 {[%clk 0:01:20]} 21. Ba3 {[%clk 0:01:01]}  Bc4 {[%clk 0:01:16]} 22. Rf2 {[%clk 0:00:58]}  Qc7 {[%clk 0:01:11]} 23. Rd2 {[%clk 0:00:43]}  Ka8 {[%clk 0:01:04]} 24. a5 {[%clk 0:00:38]}  bxa5 {[%clk 0:00:59]} 25. dxe5 {[%clk 0:00:38]}  dxe5 {[%clk 0:00:56]} 26. Bd6 {[%clk 0:00:37]}  Qc6 {[%clk 0:00:53]} 27. Bxe5 {[%clk 0:00:37]}  Nxe4 {[%clk 0:00:52]} 28. Rd4 {[%clk 0:00:32]}  f5 {[%clk 0:00:43]} 29. Bxf4 {[%clk 0:00:30]}  a4 {[%clk 0:00:38]} 30. Qc1 {[%clk 0:00:25]}  Bb3 {[%clk 0:00:37]} 31. c4 {[%clk 0:00:18]}  Rg8 {[%clk 0:00:30]} 32. g3 {[%clk 0:00:16]}  h5 {[%clk 0:00:28]} 33. Qe3 {[%clk 0:00:15]}  h4 {[%clk 0:00:27]} 34. Rxb3 {[%clk 0:00:15]}  axb3 {[%clk 0:00:26]} 35. Qxb3 {[%clk 0:00:15]}  hxg3 {[%clk 0:00:25]} 36. hxg3 {[%clk 0:00:16]}  Qc5 {[%clk 0:00:24]} 37. Qe3 {[%clk 0:00:15]}  Rc8 {[%clk 0:00:22]} 38. Kg2 {[%clk 0:00:13]}  Qc6 {[%clk 0:00:21]} 39. Kg1 {[%clk 0:00:13]}  Qb6 {[%clk 0:00:20]} 40. g4 {[%clk 0:00:10]}  Qb1+ {[%clk 0:00:19]} 41. Kg2 {[%clk 0:00:09]}  Qc2+ {[%clk 0:00:19]} 42. Kf3 {[%clk 0:00:08]}  Re8 {[%clk 0:00:19]} 43. Qd3 {[%clk 0:00:05]}  Qf2# {[%clk 0:00:17]} 0-1


[Site "https://www.chess.com"]

[Event "Titled Tuesday Blitz June 27 Late 2023"]
[White "Ladan, Nicholas"]
[Black "Makhnev, Denis"]
[WhiteFideId "30918855"]
[BlackFideId "13707647"]
[WhiteElo "2413"]
[BlackElo "2918"]
[Result "1-0"]
[Round "2"]
[TimeControl "180+2"]
[Date "2023.06.27"]
[WhiteClock "0:00:09"]
[BlackClock "0:01:10"]
[Board "103"]

1. d4 {[%clk 0:03:00]}  d5 {[%clk 0:02:59]} 2. c4 {[%clk 0:03:00]}  Nc6 {[%clk 0:03:00]} 3. Nf3 {[%clk 0:02:57]}  Bg4 {[%clk 0:03:00]} 4. e3 {[%clk 0:02:55]}  e5 {[%clk 0:02:59]} 5. dxe5 {[%clk 0:02:46]}  dxc4 {[%clk 0:02:59]} 6. Qxd8+ {[%clk 0:02:43]}  Rxd8 {[%clk 0:03:00]} 7. Bxc4 {[%clk 0:02:41]}  Nxe5 {[%clk 0:03:00]} 8. Be2 {[%clk 0:02:31]}  Nd3+ {[%clk 0:02:57]} 9. Bxd3 {[%clk 0:02:27]}  Rxd3 {[%clk 0:02:58]} 10. Bd2 {[%clk 0:02:23]}  Nf6 {[%clk 0:02:56]} 11. Ne5 {[%clk 0:02:20]}  Rd8 {[%clk 0:02:55]} 12. Nxg4 {[%clk 0:02:20]}  Nxg4 {[%clk 0:02:56]} 13. Bc3 {[%clk 0:02:16]}  f6 {[%clk 0:02:56]} 14. h3 {[%clk 0:02:14]}  Nh6 {[%clk 0:02:56]} 15. g4 {[%clk 0:02:14]}  Nf7 {[%clk 0:02:56]} 16. Nd2 {[%clk 0:02:14]}  h5 {[%clk 0:02:57]} 17. Ke2 {[%clk 0:02:13]}  Be7 {[%clk 0:02:56]} 18. f4 {[%clk 0:02:11]}  Kd7 {[%clk 0:02:54]} 19. Nf3 {[%clk 0:02:06]}  Kc8 {[%clk 0:02:47]} 20. Nd4 {[%clk 0:02:06]}  Rde8 {[%clk 0:02:41]} 21. Nf5 {[%clk 0:02:05]}  Bf8 {[%clk 0:02:42]} 22. Rag1 {[%clk 0:01:59]}  Nd8 {[%clk 0:02:18]} 23. gxh5 {[%clk 0:01:52]}  Ne6 {[%clk 0:02:18]} 24. h6 {[%clk 0:01:45]}  gxh6 {[%clk 0:02:15]} 25. Kf3 {[%clk 0:01:45]}  Rh7 {[%clk 0:02:15]} 26. Rg6 {[%clk 0:01:39]}  Be7 {[%clk 0:02:02]} 27. Nxe7+ {[%clk 0:01:34]}  Rhxe7 {[%clk 0:02:02]} 28. Bxf6 {[%clk 0:01:23]}  Rf7 {[%clk 0:02:01]} 29. Rxh6 {[%clk 0:01:20]}  Nc5 {[%clk 0:01:56]} 30. Rh8 {[%clk 0:00:58]}  Rxh8 {[%clk 0:01:54]} 31. Bxh8 {[%clk 0:00:59]}  Kd7 {[%clk 0:01:55]} 32. h4 {[%clk 0:00:58]}  Ke6 {[%clk 0:01:55]} 33. h5 {[%clk 0:00:58]}  Kf5 {[%clk 0:01:53]} 34. h6 {[%clk 0:00:52]}  Kg6 {[%clk 0:01:51]} 35. Bd4 {[%clk 0:00:51]}  Ne6 {[%clk 0:01:50]} 36. Be5 {[%clk 0:00:39]}  b6 {[%clk 0:01:49]} 37. e4 {[%clk 0:00:37]}  Kh7 {[%clk 0:01:47]} 38. f5 {[%clk 0:00:33]}  Nc5 {[%clk 0:01:48]} 39. Bg7 {[%clk 0:00:28]}  Re7 {[%clk 0:01:47]} 40. e5 {[%clk 0:00:26]}  Rd7 {[%clk 0:01:44]} 41. e6 {[%clk 0:00:24]}  Rd3+ {[%clk 0:01:45]} 42. Ke2 {[%clk 0:00:24]}  Rd8 {[%clk 0:01:38]} 43. e7 {[%clk 0:00:24]}  Re8 {[%clk 0:01:38]} 44. f6 {[%clk 0:00:24]}  Nd7 {[%clk 0:01:38]} 45. Kd1 {[%clk 0:00:21]}  Ne5 {[%clk 0:01:38]} 46. Kc2 {[%clk 0:00:19]}  Nf7 {[%clk 0:01:38]} 47. Rd1 {[%clk 0:00:19]}  Kg6 {[%clk 0:01:37]} 48. Rd7 {[%clk 0:00:19]}  Rc8 {[%clk 0:01:36]} 49. Kb3 {[%clk 0:00:18]}  c5 {[%clk 0:01:34]} 50. Rxa7 {[%clk 0:00:18]}  b5 {[%clk 0:01:35]} 51. Ra5 {[%clk 0:00:18]}  c4+ {[%clk 0:01:36]} 52. Kc3 {[%clk 0:00:19]}  Nd6 {[%clk 0:01:35]} 53. Ra6 {[%clk 0:00:16]}  Nf7 {[%clk 0:01:35]} 54. Rb6 {[%clk 0:00:16]}  Ng5 {[%clk 0:01:28]} 55. Rxb5 {[%clk 0:00:16]}  Ne4+ {[%clk 0:01:29]} 56. Kc2 {[%clk 0:00:16]}  c3 {[%clk 0:01:29]} 57. b3 {[%clk 0:00:15]}  Nd6 {[%clk 0:01:21]} 58. Re5 {[%clk 0:00:11]}  Ne8 {[%clk 0:01:15]} 59. h7 {[%clk 0:00:10]}  Kxh7 {[%clk 0:01:09]} 60. f7 {[%clk 0:00:10]}  Nxg7 {[%clk 0:01:10]} 61. f8=Q {[%clk 0:00:08]}  Rc6 {[%clk 0:01:10]} 62. Qxg7+ {[%clk 0:00:07]}  Kxg7 {[%clk 0:01:09]} 63. e8=Q {[%clk 0:00:08]}  Rf6 {[%clk 0:01:10]} 64. Rg5+ {[%clk 0:00:08]}  Kh6 {[%clk 0:01:10]} 65. Qh5# {[%clk 0:00:09]} 1-0


[Site "https://www.chess.com"]

[Event "Titled Tuesday Blitz June 27 Late 2023"]
[White "Miladinovic, Igor"]
[Black "Bueno, Alfeu Junior Varela"]
[WhiteFideId "4203380"]
[BlackFideId "2108879"]
[WhiteElo "2862"]
[BlackElo "2405"]
[Result "1-0"]
[Round "2"]
[TimeControl "180+2"]
[Date "2023.06.27"]
[WhiteClock "0:00:23"]
[BlackClock "0:00:05"]
[Board "106"]

1. d4 {[%clk 0:03:00]}  e6 {[%clk 0:03:00]} 2. e4 {[%clk 0:03:00]}  d5 {[%clk 0:03:00]} 3. Nc3 {[%clk 0:03:00]}  Nf6 {[%clk 0:03:00]} 4. e5 {[%clk 0:03:00]}  Nfd7 {[%clk 0:03:00]} 5. f4 {[%clk 0:03:01]}  c5 {[%clk 0:03:01]} 6. Nf3 {[%clk 0:03:02]}  Nc6 {[%clk 0:03:01]} 7. Be3 {[%clk 0:03:01]}  cxd4 {[%clk 0:03:02]} 8. Nxd4 {[%clk 0:03:02]}  Bc5 {[%clk 0:03:02]} 9. Qd2 {[%clk 0:03:02]}  O-O {[%clk 0:03:03]} 10. h4 {[%clk 0:03:00]}  a6 {[%clk 0:03:03]} 11. h5 {[%clk 0:03:00]}  Nxd4 {[%clk 0:02:45]} 12. Bxd4 {[%clk 0:03:01]}  b5 {[%clk 0:02:33]} 13. h6 {[%clk 0:03:01]}  g6 {[%clk 0:02:33]} 14. Rh3 {[%clk 0:03:01]}  Qb6 {[%clk 0:02:18]} 15. O-O-O {[%clk 0:02:56]}  Bb7 {[%clk 0:02:02]} 16. Kb1 {[%clk 0:02:51]}  Rac8 {[%clk 0:02:01]} 17. g4 {[%clk 0:02:50]}  Qa5 {[%clk 0:01:55]} 18. f5 {[%clk 0:02:42]}  Bxd4 {[%clk 0:01:42]} 19. Qxd4 {[%clk 0:02:41]}  b4 {[%clk 0:01:43]} 20. Ne2 {[%clk 0:02:41]}  Qc7 {[%clk 0:01:42]} 21. Rc1 {[%clk 0:02:07]}  Qxe5 {[%clk 0:01:32]} 22. Qxb4 {[%clk 0:02:05]}  Bc6 {[%clk 0:01:16]} 23. fxe6 {[%clk 0:02:01]}  fxe6 {[%clk 0:01:13]} 24. Qd4 {[%clk 0:02:01]}  Bb5 {[%clk 0:01:03]} 25. Qd2 {[%clk 0:01:28]}  Rxf1 {[%clk 0:00:57]} 26. Rxf1 {[%clk 0:01:25]}  Qxe2 {[%clk 0:00:57]} 27. Qxe2 {[%clk 0:01:18]}  Bxe2 {[%clk 0:00:58]} 28. Rg1 {[%clk 0:01:18]}  Nf6 {[%clk 0:00:53]} 29. g5 {[%clk 0:01:13]}  Ne4 {[%clk 0:00:54]} 30. Re3 {[%clk 0:01:12]}  Bb5 {[%clk 0:00:42]} 31. b3 {[%clk 0:01:12]}  Bc6 {[%clk 0:00:36]} 32. Kb2 {[%clk 0:01:09]}  Rf8 {[%clk 0:00:35]} 33. Rg2 {[%clk 0:00:55]}  Rf5 {[%clk 0:00:26]} 34. a4 {[%clk 0:00:44]}  Kf7 {[%clk 0:00:27]} 35. Rge2 {[%clk 0:00:35]}  Ke7 {[%clk 0:00:26]} 36. c4 {[%clk 0:00:34]}  Rxg5 {[%clk 0:00:24]} 37. cxd5 {[%clk 0:00:32]}  exd5 {[%clk 0:00:24]} 38. Rc2 {[%clk 0:00:32]}  Kd6 {[%clk 0:00:24]} 39. Rf3 {[%clk 0:00:32]}  Rh5 {[%clk 0:00:22]} 40. Rf8 {[%clk 0:00:30]}  Rxh6 {[%clk 0:00:22]} 41. Rd8+ {[%clk 0:00:28]}  Kc7 {[%clk 0:00:16]} 42. Rxd5 {[%clk 0:00:26]}  g5 {[%clk 0:00:11]} 43. Rd4 {[%clk 0:00:25]}  Kb7 {[%clk 0:00:10]} 44. Rb4+ {[%clk 0:00:24]}  Ka7 {[%clk 0:00:05]} 45. Rbc4 {[%clk 0:00:24]}  Kb7 {[%clk 0:00:04]} 46. Rb4+ {[%clk 0:00:24]}  Ka7 {[%clk 0:00:05]} 47. Ka3 {[%clk 0:00:24]}  Rg6 {[%clk 0:00:04]} 48. Rbc4 {[%clk 0:00:22]}  Kb7 {[%clk 0:00:03]} 49. Rh2 {[%clk 0:00:21]}  h6 {[%clk 0:00:02]} 50. Rhc2 {[%clk 0:00:19]}  g4 {[%clk 0:00:02]} 51. Rb4+ {[%clk 0:00:20]}  Kc7 {[%clk 0:00:02]} 52. Rxe4 {[%clk 0:00:18]}  g3 {[%clk 0:00:03]} 53. Re1 {[%clk 0:00:19]}  g2 {[%clk 0:00:03]} 54. Rg1 {[%clk 0:00:19]}  h5 {[%clk 0:00:04]} 55. Rc4 {[%clk 0:00:20]}  Rg4 {[%clk 0:00:04]} 56. Rc3 {[%clk 0:00:19]}  h4 {[%clk 0:00:04]} 57. b4 {[%clk 0:00:20]}  Rg3 {[%clk 0:00:04]} 58. Kb3 {[%clk 0:00:20]}  h3 {[%clk 0:00:02]} 59. Rxg3 {[%clk 0:00:19]}  h2 {[%clk 0:00:03]} 60. Rg7+ {[%clk 0:00:19]}  Kb6 {[%clk 0:00:03]} 61. a5+ {[%clk 0:00:19]}  Kb5 {[%clk 0:00:03]} 62. Rg5+ {[%clk 0:00:19]}  Bd5+ {[%clk 0:00:04]} 63. Rxd5+ {[%clk 0:00:20]}  Kc6 {[%clk 0:00:04]} 64. Rc5+ {[%clk 0:00:20]}  Kd6 {[%clk 0:00:05]} 65. Rcc1 {[%clk 0:00:21]}  hxg1=Q {[%clk 0:00:04]} 66. Rxg1 {[%clk 0:00:22]}  Ke5 {[%clk 0:00:04]} 67. Rxg2 {[%clk 0:00:23]}  Kf4 {[%clk 0:00:05]} 68. Rc2 {[%clk 0:00:23]} 1-0


[Site "https://www.chess.com"]

[Event "Titled Tuesday Blitz June 27 Late 2023"]
[White "Nazari, Arad"]
[Black "Szyszylo, Rafal"]
[WhiteFideId "12577324"]
[BlackFideId "1109626"]
[WhiteElo "2740"]
[BlackElo "2403"]
[Result "1-0"]
[Round "2"]
[TimeControl "180+2"]
[Date "2023.06.27"]
[WhiteClock "0:03:05"]
[BlackClock "0:01:17"]
[Board "109"]

1. e4 {[%clk 0:03:00]}  d6 {[%clk 0:03:00]} 2. d4 {[%clk 0:03:00]}  Nf6 {[%clk 0:02:58]} 3. Nc3 {[%clk 0:03:01]}  g6 {[%clk 0:02:57]} 4. f4 {[%clk 0:03:01]}  Bg7 {[%clk 0:02:57]} 5. Nf3 {[%clk 0:03:02]}  O-O {[%clk 0:02:57]} 6. e5 {[%clk 0:03:03]}  Nfd7 {[%clk 0:02:56]} 7. h4 {[%clk 0:03:03]}  c5 {[%clk 0:02:57]} 8. h5 {[%clk 0:03:04]}  cxd4 {[%clk 0:02:57]} 9. hxg6 {[%clk 0:03:04]}  hxg6 {[%clk 0:02:45]} 10. Qxd4 {[%clk 0:03:02]}  dxe5 {[%clk 0:02:42]} 11. fxe5 {[%clk 0:03:03]}  Nxe5 {[%clk 0:02:40]} 12. Qh4 {[%clk 0:03:03]}  Nxf3+ {[%clk 0:02:12]} 13. gxf3 {[%clk 0:03:04]}  Re8 {[%clk 0:01:58]} 14. Qh7+ {[%clk 0:03:04]}  Kf8 {[%clk 0:01:58]} 15. Bh6 {[%clk 0:03:04]}  e6 {[%clk 0:01:20]} 16. Qxg7+ {[%clk 0:03:03]}  Ke7 {[%clk 0:01:20]} 17. Bg5+ {[%clk 0:03:04]}  Kd7 {[%clk 0:01:17]} 18. O-O-O+ {[%clk 0:03:05]} 1-0


[Site "https://www.chess.com"]

[Event "Titled Tuesday Blitz June 27 Late 2023"]
[White "Romero Ruscalleda, Josep"]
[Black "Boyer, Mahel"]
[WhiteFideId "2231859"]
[BlackFideId "45102422"]
[WhiteElo "2389"]
[BlackElo "2692"]
[Result "0-1"]
[Round "2"]
[TimeControl "180+2"]
[Date "2023.06.27"]
[WhiteClock "0:01:21"]
[BlackClock "0:01:50"]
[Board "112"]

1. e4 {[%clk 0:03:00]}  Nc6 {[%clk 0:02:57]} 2. d4 {[%clk 0:03:00]}  d5 {[%clk 0:02:57]} 3. exd5 {[%clk 0:02:59]}  Qxd5 {[%clk 0:02:58]} 4. Be3 {[%clk 0:02:58]}  e5 {[%clk 0:02:58]} 5. Nc3 {[%clk 0:02:58]}  Bb4 {[%clk 0:02:55]} 6. Nf3 {[%clk 0:02:42]}  Bg4 {[%clk 0:02:48]} 7. Be2 {[%clk 0:02:39]}  e4 {[%clk 0:02:45]} 8. Nd2 {[%clk 0:02:39]}  Bxe2 {[%clk 0:02:45]} 9. Qxe2 {[%clk 0:02:33]}  Bxc3 {[%clk 0:02:42]} 10. bxc3 {[%clk 0:02:32]}  O-O-O {[%clk 0:02:38]} 11. O-O {[%clk 0:02:32]}  Nf6 {[%clk 0:02:35]} 12. Rab1 {[%clk 0:02:27]}  a6 {[%clk 0:02:32]} 13. Rb3 {[%clk 0:02:24]}  Na5 {[%clk 0:02:31]} 14. Rb4 {[%clk 0:02:24]}  Rhe8 {[%clk 0:02:25]} 15. Rfb1 {[%clk 0:02:21]}  Qh5 {[%clk 0:02:26]} 16. Qxh5 {[%clk 0:02:15]}  Nxh5 {[%clk 0:02:24]} 17. Nb3 {[%clk 0:02:11]}  Nc6 {[%clk 0:02:24]} 18. Rc4 {[%clk 0:02:08]}  f5 {[%clk 0:02:20]} 19. Bg5 {[%clk 0:02:00]}  Rd5 {[%clk 0:02:20]} 20. Nc5 {[%clk 0:02:00]}  b5 {[%clk 0:02:19]} 21. Rcb4 {[%clk 0:01:50]}  Nxb4 {[%clk 0:02:17]} 22. Rxb4 {[%clk 0:01:50]}  h6 {[%clk 0:02:17]} 23. Bc1 {[%clk 0:01:49]}  f4 {[%clk 0:02:16]} 24. Nxa6 {[%clk 0:01:48]}  e3 {[%clk 0:02:07]} 25. Kf1 {[%clk 0:01:48]}  Rg5 {[%clk 0:02:01]} 26. fxe3 {[%clk 0:01:29]}  fxe3 {[%clk 0:02:02]} 27. g3 {[%clk 0:01:30]}  Rf5+ {[%clk 0:01:57]} 28. Ke1 {[%clk 0:01:29]}  e2 {[%clk 0:01:56]} 29. Bf4 {[%clk 0:01:26]}  Nxf4 {[%clk 0:01:52]} 30. gxf4 {[%clk 0:01:21]}  Rxf4 {[%clk 0:01:50]} 0-1


[Site "https://www.chess.com"]

[Event "Titled Tuesday Blitz June 27 Late 2023"]
[White "Velikanov, Alexander"]
[Black "Yolosz"]
[WhiteFideId "2039290"]
[WhiteElo "2686"]
[BlackElo "2382"]
[Result "1-0"]
[Round "2"]
[TimeControl "180+2"]
[Date "2023.06.27"]
[WhiteClock "0:01:38"]
[BlackClock "0:00:09"]
[Board "113"]

1. d4 {[%clk 0:03:00]}  d5 {[%clk 0:02:58]} 2. c4 {[%clk 0:03:00]}  c6 {[%clk 0:02:58]} 3. Nf3 {[%clk 0:02:59]}  Nf6 {[%clk 0:02:58]} 4. Qc2 {[%clk 0:02:59]}  e6 {[%clk 0:02:53]} 5. Nbd2 {[%clk 0:02:58]}  Nbd7 {[%clk 0:02:50]} 6. g3 {[%clk 0:02:58]}  Bb4 {[%clk 0:02:44]} 7. Bg2 {[%clk 0:02:56]}  Ne4 {[%clk 0:02:39]} 8. O-O {[%clk 0:02:55]}  Nxd2 {[%clk 0:02:38]} 9. Bxd2 {[%clk 0:02:40]}  Bxd2 {[%clk 0:02:38]} 10. Nxd2 {[%clk 0:02:40]}  O-O {[%clk 0:02:37]} 11. e4 {[%clk 0:02:35]}  dxe4 {[%clk 0:02:27]} 12. Nxe4 {[%clk 0:02:36]}  Nf6 {[%clk 0:02:27]} 13. Rfd1 {[%clk 0:02:32]}  Nxe4 {[%clk 0:02:25]} 14. Bxe4 {[%clk 0:02:33]}  g6 {[%clk 0:02:20]} 15. b4 {[%clk 0:02:27]}  Qe7 {[%clk 0:02:12]} 16. Rab1 {[%clk 0:02:24]}  e5 {[%clk 0:01:59]} 17. d5 {[%clk 0:02:22]}  cxd5 {[%clk 0:01:59]} 18. cxd5 {[%clk 0:02:19]}  Qd6 {[%clk 0:01:42]} 19. Qc5 {[%clk 0:02:13]}  Rd8 {[%clk 0:01:39]} 20. Rbc1 {[%clk 0:02:11]}  Bf5 {[%clk 0:01:17]} 21. Bxf5 {[%clk 0:02:09]}  gxf5 {[%clk 0:01:17]} 22. Qxd6 {[%clk 0:02:10]}  Rxd6 {[%clk 0:01:17]} 23. Rc7 {[%clk 0:02:11]}  Rb8 {[%clk 0:01:13]} 24. Re7 {[%clk 0:02:08]}  f6 {[%clk 0:01:08]} 25. Rc1 {[%clk 0:02:00]}  a5 {[%clk 0:00:39]} 26. Rcc7 {[%clk 0:02:01]}  Rxd5 {[%clk 0:00:34]} 27. Rg7+ {[%clk 0:01:59]}  Kh8 {[%clk 0:00:32]} 28. Rxh7+ {[%clk 0:02:00]}  Kg8 {[%clk 0:00:33]} 29. Rcg7+ {[%clk 0:01:53]}  Kf8 {[%clk 0:00:33]} 30. Rg6 {[%clk 0:01:54]}  Rd6 {[%clk 0:00:31]} 31. bxa5 {[%clk 0:01:51]}  Ra6 {[%clk 0:00:25]} 32. h4 {[%clk 0:01:44]}  b5 {[%clk 0:00:18]} 33. h5 {[%clk 0:01:38]}  b4 {[%clk 0:00:13]} 34. Rh8+ {[%clk 0:01:37]}  Kf7 {[%clk 0:00:09]} 35. Rxb8 {[%clk 0:01:38]} 1-0


[Site "https://www.chess.com"]